[Event "Orbis-2 IM 2018"]
[Site "Paracin"]
[Date "2018.12.04"]
[Round "2"]
[White "Klasan, Vladimir"]
[Black "Konstantinov, Aleksandar"]
[Result "1/2-1/2"]
[ECO "A03"]
[WhiteElo "2364"]
[BlackElo "2080"]
[Annotator "ChessBase"]
[PlyCount "105"]
[EventDate "2018.12.03"]
[EventType "tourn"]
[EventCountry "SRB"]
[SourceTitle "playchess.com"]
[Source "ChessBase"]
[SourceQuality "1"]
[TimeControl "40/5400+30:1800+30"]

1. f4 d5 2. Nf3 c5 3. g3 Nc6 4. Bg2 g6 5. O-O Bg7 6. d3 Nf6 7. Nc3 O-O 8. e4 dxe4 9. dxe4 e5 10. Qxd8 Rxd8 11. Nxe5 Nxe5 12. fxe5 Ng4 13. Bg5 Re8 14. Nd5 Bxe5 15. h3 h6 16. Bd2 Bd4+ 17. Kh1 Nf2+ 18. Rxf2 Bxf2 19. Nf6+ Kf8 20. Bxh6+ Ke7 21. Nd5+ Kd6 22. Bf4+ Kc6 23. Nc7 Be6 24. Nxa8 Rxa8 25. Rd1 g5 26. Rd6+ Kb5 27. Bf1+ c4 28. Be5 Bc5 29. Rd1 Kc6 30. Bf6 Rg8 31. Kg2 Rg6 32. Bd4 Rh6 33. g4 Bd6 34. Be3 Rg6 35. b3 b5 36. bxc4 bxc4 37. Bxa7 Rg8 38. Bd4 Ra8 39. Ra1 Ra3 40. c3 Bc5 41. Be2 Bb6 42. Bxb6 Kxb6 43. Rc1 Rxa2 44. Kf2 Kc5 45. Ke3 Kd6 46. Bf3 Rh2 47. Be2 Kc5 48. Bf1 Ra2 49. Kf3 Kd6 50. Kg3 Ke5 51. Re1 Rc2 52. Re3 Rc1 53. Be2 1/2-1/2

[Event "Orbis-2 IM 2018"]
[Site "Paracin"]
[Date "2018.12.04"]
[Round "2"]
[White "Karthik Kumar Pradeep"]
[Black "Mladenovic, Stefan"]
[Result "1/2-1/2"]
[ECO "E06"]
[WhiteElo "2230"]
[BlackElo "2330"]
[Annotator "NA"]
[PlyCount "97"]
[EventDate "2018.12.03"]
[EventType "tourn"]
[EventCountry "SRB"]
[SourceTitle "playchess.com"]
[Source "ChessBase"]
[SourceQuality "1"]
[TimeControl "40/5400+30:1800+30"]

1. d4 {[%emt 0:00:00]} Nf6 {[%emt 0:00:00]} 2. c4 {[%emt 0:00:06]} e6 {[%emt 0:00:00]} 3. g3 {[%emt 0:00:12]} d5 {[%emt 0:00:00]} 4. Nf3 {[%emt 0:00:08]} Be7 {[%emt 0:00:06]} 5. Bg2 {[%emt 0:00:07]} O-O {[%emt 0:00:08]} 6. O-O {[%emt 0:00:08]} dxc4 {[%emt 0:00:03]} 7. Qc2 {[%emt 0:00:10]} b6 {[%emt 0:00:10] E05: Open Catalan: 5 Nf3 Be7} 8. Qxc4 {[%emt 0:05:45]} (8. Ne5 Qxd4 9. Bxa8 Qxe5 10. Bf3 Nd5 11. Qxc4 Ba6 12. Qa4 c5 13. Na3 Qc7 14. Rd1 Qc8 15. Bd2 {½-½ (27) Cheparinov,I (2711)-Bacrot,E (2677) Zagreb 2018}) 8... Bb7 {[%emt 0:00:29]} 9. Bf4 {[%emt 0:04:09]} c5 {[%emt 0:04:30]} 10. dxc5 {[%emt 0:04:11]} Bxc5 {[%emt 0:02:06]} 11. Nc3 {[%emt 0:04:49]} Nbd7 $146 {[%emt 0:04:02]} ({Predecessor:} 11... Qe7 12. a3 Rc8 13. Qa4 Nbd7 14. Rac1 a6 15. b4 {1-0 (38) Izzat,K (2484)-Brown,M (2497) chess.com INT 2018}) 12. b4 {[%emt 0:03:54]} Be7 {[%emt 0:05:21]} 13. Rac1 {[%emt 0:27:30]} Rc8 {[%emt 0:05:41]} 14. Qb3 {[%emt 0:00:17]} Nh5 {[%emt 0:36:20]} 15. Be3 {[%emt 0:02:26]} Bd6 {[%emt 0:01:27]} 16. Nb5 {[%emt 0:08:51]} Rxc1 {[%emt 0:01:31]} 17. Rxc1 {[%emt 0:00:04]} Bb8 {[%emt 0:00:06]} 18. Nbd4 {[%emt 0:11:57]} Nhf6 {[%emt 0:17:12]} 19. Nc6 {[%emt 0:03:34]} Bxc6 {[%emt 0:00:05]} 20. Rxc6 {[%emt 0:00:02]} Ne5 {[%emt 0:00:09]} 21. Rc1 {[%emt 0:02:34]} Nfg4 {[%emt 0:07:25]} 22. Rd1 {[%emt 0:03:35]} Qf6 {[%emt 0:00:21]} 23. Bc1 {[%emt 0:03:55]} b5 {[%emt 0:04:01]} 24. h3 {[%emt 0:01:02]} Nxf3+ {[%emt 0:00:23]} 25. Qxf3 {[%emt 0:00:01]} Qxf3 {[%emt 0:00:40]} 26. exf3 {[%emt 0:00:15]} Ne5 {[%emt 0:03:28]} 27. Be3 {[%emt 0:02:01]} Rc8 {[%emt 0:02:29]} (27... Nc6 $14) 28. f4 {[%emt 0:00:38]} Nc4 {[%emt 0:00:06]} 29. Bc5 {[%emt 0:00:11]} Bd6 {[%emt 0:04:59]} 30. Bxa7 {[%emt 0:07:01]} (30. Rxd6 $16 Nxd6 31. Bxd6) 30... Bxb4 {[%emt 0:00:19] [#]} 31. Rb1 $1 {[%emt 0:04:03]} Bf8 {[%emt 0:00:50]} 32. Rxb5 {[%emt 0:00:28]} Na3 {[%emt 0:00:02]} 33. Rb2 {[%emt 0:01:41]} h5 {[%emt 0:01:20]} 34. Be4 {[%emt 0:00:42]} g6 {[%emt 0:00:07]} 35. Be3 {[%emt 0:00:18]} Rd8 {[%emt 0:00:44]} 36. Kf1 {[%emt 0:00:28]} ({White should play} 36. Rd2 $16 Rxd2 37. Bxd2) 36... Nc4 {[%emt 0:00:43]} 37. Rc2 {[%emt 0:00:32]} Nxe3+ {[%emt 0:00:30]} 38. fxe3 {[%emt 0:00:01]} Rd1+ {[%emt 0:00:07]} 39. Ke2 {[%emt 0:00:08]} Ra1 {[%emt 0:00:16]} 40. Rb2 {[%emt 0:00:00]} Rg1 {[%emt 0:00:00]} 41. Kf2 {[%emt 0:00:51]} Rc1 {[%emt 0:01:15]} 42. g4 {[%emt 0:05:56]} hxg4 {[%emt 0:01:36]} 43. hxg4 {[%emt 0:00:01]} Bc5 {[%emt 0:01:35]} 44. Rc2 {[%emt 0:01:11]} Rxc2+ $14 {[%emt 0:00:38]} 45. Bxc2 {[%emt 0:00:01]} Ba3 {[%emt 0:06:52]} 46. Ke2 {[%emt 0:00:19]} Kf8 {[%emt 0:00:22]} 47. Kd3 {[%emt 0:00:09]} Ke7 {[%emt 0:00:04]} 48. Kc4 {[%emt 0:00:10]} Kd6 {[%emt 0:03:28]} 49. Kd3 {[%emt 0:00:50] Ke5 Ke4+} 1/2-1/2

[Event "Orbis-2 IM 2018"]
[Site "Paracin"]
[Date "2018.12.04"]
[Round "2"]
[White "Om Kharola"]
[Black "Besedes, Danilo"]
[Result "1-0"]
[ECO "B15"]
[WhiteElo "2080"]
[BlackElo "2300"]
[Annotator "RC"]
[PlyCount "59"]
[EventDate "2018.12.03"]
[EventType "tourn"]
[EventCountry "SRB"]
[SourceTitle "playchess.com"]
[Source "ChessBase"]
[SourceQuality "1"]
[TimeControl "40/5400+30:1800+30"]

1. e4 c6 2. d4 d5 3. Nc3 dxe4 4. Nxe4 Nf6 5. Nxf6+ exf6 6. Nf3 Bd6 7. Bd3 O-O 8. O-O Bg4 9. c3 Nd7 10. Be3 Qc7 11. h3 Bh5 12. g4 Bg6 13. Nh4 Rfe8 14. Nf5 Bf4 15. Qf3 Bxe3 16. fxe3 Rad8 17. Rad1 Nf8 18. h4 Ne6 19. Kg2 a5 20. Rf2 Rd7 21. Rh1 h6 22. Kg1 Rdd8 23. Rg2 Qd7 24. g5 fxg5 25. hxg5 Bxf5 26. Bxf5 hxg5 27. Rxg5 Kf8 28. Rh8+ Ke7 29. Bxe6 Qxe6 30. Rxe8+ 1-0

[Event "Orbis-2 IM 2018"]
[Site "Paracin"]
[Date "2018.12.04"]
[Round "3"]
[White "Konstantinov, Aleksandar"]
[Black "Rakshitta Ravi"]
[Result "1-0"]
[ECO "D35"]
[WhiteElo "2080"]
[BlackElo "2141"]
[Annotator "NA"]
[PlyCount "109"]
[EventDate "2018.12.03"]
[EventType "tourn"]
[EventCountry "SRB"]
[SourceTitle "playchess.com"]
[Source "ChessBase"]
[SourceQuality "1"]
[TimeControl "40/5400+30:1800+30"]

1. d4 Nf6 2. c4 e6 3. Nc3 d5 4. cxd5 exd5 5. Bg5 Nbd7 6. e3 Be7 7. Bd3 c6 8. Qc2 O-O 9. Nge2 Re8 10. O-O h6 11. Bh4 Nf8 12. f3 Ne6 13. Bf2 {LiveBook: 7 Games D36: Queen's Gambit Declined: Exchange Variation: Main line (5 Bg5 c6 6 Qc2)} (13. Kh1 Nh5 14. Bf2 Nf6 15. Rad1 Bd7 16. Bg1 Ng5 17. e4 dxe4 18. fxe4 Bg4 19. h3 Bh5 20. Rde1 Ne6 {1-0 (31) Le,Q (2736)-Pham,L (2354) Hanoi 2018}) 13... Bd6 14. h3 Nh5 $146 ({Predecessor:} 14... Qc7 15. e4 dxe4 16. fxe4 Be7 17. Be3 b6 18. e5 Nd7 19. Bh7+ Kf8 20. Rxf7+ Kxf7 21. Qg6+ Kf8 22. Rf1+ Nf6 23. exf6 Bxf6 24. Rxf6+ gxf6 25. Qxf6+ Qf7 26. Bxh6+ {1-0 (26) Montilla Reyes,J (2118)-Valner,S (1849) Tromsoe 2014}) 15. g4 {[%emt 0:45:50]} (15. Kh1 $11) 15... Ng5 {[%emt 0:32:55]} 16. Kg2 {[%emt 0:00:29]} Nf6 {[%emt 0:05:50]} 17. h4 $2 {[%emt 0:14:32] [#]} (17. Nf4 $11) 17... Nxf3 $1 {[%emt 0:04:31]} 18. Kxf3 {[%emt 0:00:32]} Nxg4 {[%emt 0:00:24]} (18... Bxg4+ 19. Kg2 $17) 19. Kg2 {[%emt 0:02:52]} Rxe3 {[%emt 0:04:53]} 20. Bh7+ {[%emt 0:03:04]} Kh8 {[%emt 0:01:17]} 21. Bf5 {[%emt 0:00:07]} Nxf2 {[%emt 0:12:51]} 22. Rxf2 {[%emt 0:05:14]} Qxh4 {[%emt 0:02:27]} ({Stronger than} 22... Bxf5 23. Qxf5 Qxh4 24. Rh1 $11) 23. Rg1 {[%emt 0:05:38]} Bxf5 {[%emt 0:05:16]} 24. Qxf5 {[%emt 0:00:24]} Re6 {[%emt 0:21:11]} 25. Rh1 {[%emt 0:06:43]} Qe7 {[%emt 0:00:52]} 26. Qxf7 {[%emt 0:03:07]} Qxf7 {[%emt 0:01:51]} 27. Rxf7 {[%emt 0:00:09]} Kg8 {[%emt 0:00:08]} 28. Rf3 {[%emt 0:07:45]} b5 {[%emt 0:00:51]} 29. Nf4 {[%emt 0:01:34]} Rf6 {[%emt 0:02:37]} 30. Nd3 {[%emt 0:00:38]} Rxf3 {[%emt 0:00:59]} 31. Kxf3 {[%emt 0:00:06]} Rf8+ {[%emt 0:00:02]} 32. Kg2 {[%emt 0:02:37]} Kh7 {[%emt 0:00:32]} 33. Re1 {[%emt 0:00:14]} Rf6 {[%emt 0:01:48]} 34. Ne5 {[%emt 0:00:47]} Re6 {[%emt 0:00:07]} 35. Kf3 {[%emt 0:04:33]} Rf6+ {[%emt 0:01:46]} 36. Ke3 {[%emt 0:01:08]} (36. Kg4 $5 {[%cal Re5c6]}) 36... g5 {[%emt 0:01:43]} 37. Kd3 {[%emt 0:00:15]} Bxe5 {[%emt 0:00:28]} 38. dxe5 {[%emt 0:00:05]} Re6 {[%emt 0:00:05]} 39. Kd4 {[%emt 0:01:02]} h5 {[%emt 0:00:28]} 40. Nd1 {[%emt 0:00:00]} Kh6 {[%emt 0:00:00]} 41. Nf2 {[%emt 0:05:38]} g4 {[%emt 0:02:38]} 42. Nd3 {[%emt 0:01:14]} Kg5 {[%emt 0:00:17]} 43. Nc5 {[%emt 0:00:31]} Re7 {[%emt 0:00:09]} 44. e6 {[%emt 0:00:26]} g3 {[%emt 0:00:55]} 45. Ke3 {[%emt 0:02:05]} Kg4 {[%emt 0:00:10]} 46. Ke2 {[%emt 0:02:02]} h4 {[%emt 0:00:32]} 47. Kf1 {[%emt 0:00:10]} h3 $11 {[%emt 0:00:24]} 48. Kg1 {[%emt 0:01:26]} d4 {[%emt 0:09:24]} 49. Rd1 {[%emt 0:03:21]} Rh7 {[%emt 0:00:02]} 50. Rxd4+ {[%emt 0:03:55]} Kf3 {[%emt 0:00:05]} 51. Rd3+ {[%emt 0:00:10]} Kf4 {[%emt 0:00:20]} 52. Rd1 {[%emt 0:00:21]} Kf3 {[%emt 0:00:16]} 53. Rf1+ {[%emt 0:02:21]} Ke3 {[%emt 0:01:45]} 54. e7 {[%emt 0:00:20]} h2+ {[%emt 0:01:55]} 55. Kg2 {[%emt 0:00:56]} 1-0

[Event "Orbis-2 IM 2018"]
[Site "Paracin"]
[Date "2018.12.05"]
[Round "4"]
[White "Om Kharola"]
[Black "Konstantinov, Aleksandar"]
[Result "1-0"]
[ECO "C00"]
[WhiteElo "2080"]
[BlackElo "2080"]
[Annotator "NA"]
[PlyCount "111"]
[EventDate "2018.12.03"]
[EventType "tourn"]
[EventCountry "SRB"]
[SourceTitle "playchess.com"]
[Source "ChessBase"]
[SourceQuality "1"]
[TimeControl "40/5400+30:1800+30"]

{[%evp 19,101,-11,0,0,0,0,-2,0,24,14,23,22,15,-2,4,0,0,0,0,0,-8,32767,-42,-19,-20,-26,-24,-14,32767,-16,-12,-29,-23,-31,-24,-39,-31,-43,-18,-23,-15,32767,-18,-7,-8,-4,-10,0,35,27,41,31,32767,22,34,32767,0,32767,32767,133,137,0,32767,0,0,-48,0,32767,32767,32767,32767,32767,32767,32767,162,227,583,908,1310,1315,886,1733,4598,6627]} 1. e4 e6 2. d4 d5 3. Bd3 dxe4 4. Bxe4 Nf6 5. Bf3 c5 6. Ne2 Nc6 {C01: French: Exchange Variation} 7. Be3 cxd4 (7... Nd5 8. Bxd5 Qxd5 9. Nbc3 Qxg2 10. Rg1 Qf3 11. Nb5 Rb8 12. dxc5 Bd7 13. Nc7+ Kd8 14. Nb5 {0-1 (54) Kramnik,V (2808)-Caruana,F (2808) Stavanger 2017}) 8. Nxd4 Ne5 9. O-O Be7 10. Nc3 O-O 11. Qe2 {LiveBook: 4 Games} Nxf3+ 12. Qxf3 Qa5 13. Nb3 {[#]} Qh5 $146 ({Predecessor:} 13... Qc7 14. Nb5 {½-½ (34) Guerra Arrocha,D (2079)-Kharitonov,A (2566) Santa Cruz de La Palma 2018}) 14. Qxh5 Nxh5 15. Rfd1 Nf6 16. Bd4 Rd8 17. Na5 Nd5 18. Nb5 a6 19. Nc3 Nxc3 20. bxc3 f6 21. Bb6 Rxd1+ 22. Rxd1 e5 23. c4 $1 Be6 24. c5 $1 Rb8 25. a3 Kf7 26. Kf1 h5 27. Ke1 g5 28. c4 h4 29. Rb1 Bf5 30. Rb3 Be4 31. f3 Bc6 32. Ba7 Rc8 33. Nxc6 Rxc6 34. Rxb7 Ke6 35. Kd2 Bxc5 36. Bxc5 Rxc5 37. Rb6+ Kf5 38. Kc3 g4 39. fxg4+ Kxg4 40. Rxa6 (40. Rxf6 $16 a5 41. a4) 40... f5 $1 41. Rg6+ Kf4 42. Kb4 Rc8 43. c5 Re8 44. c6 e4 45. c7 e3 46. Re6 Rc8 {[#]} (46... Rxe6 $11 {and Black has nothing to worry.} 47. c8=Q Re4+ 48. Kb5 Re5+ 49. Kb6 e2 50. Qc1+ Re3) 47. Re7 $1 h3 $2 (47... e2 $16 {is tougher.}) 48. g3+ Kf3 49. Kc5 $18 Kg2 50. Kc6 Kxh2 51. Rxe3 Kg2 52. Kd7 h2 53. Re1 h1=Q 54. Rxh1 Rxc7+ 55. Kxc7 Kxh1 56. Kd6 1-0

[Event "Orbis-2 IM 2018"]
[Site "Paracin"]
[Date "2018.12.06"]
[Round "5"]
[White "Besedes, Danilo"]
[Black "Sahil, Tickoo"]
[Result "0-1"]
[ECO "D02"]
[WhiteElo "2300"]
[BlackElo "2224"]
[Annotator "NA"]
[PlyCount "84"]
[EventDate "2018.12.03"]
[EventType "tourn"]
[EventCountry "SRB"]
[SourceTitle "playchess.com"]
[Source "ChessBase"]
[SourceQuality "1"]
[TimeControl "40/5400+30:1800+30"]

1. d4 {[%emt 0:01:47]} d5 {[%emt 0:00:00]} 2. Nf3 {[%emt 0:00:57]} Nf6 {[%emt 0:00:00]} 3. Bf4 {[%emt 0:00:06]} e6 {[%emt 0:01:57]} 4. e3 {[%emt 0:00:44]} Bd6 {[%emt 0:00:57]} 5. Bg3 {[%emt 0:00:02]} c5 {[%emt 0:03:57]} 6. c3 {[%emt 0:00:05] D02: 1 d4 d5 2 Nf3 sidelines, including 2...Nf6 3 g3 and 2...Nf6 3 Bf4} Qc7 {[%emt 0:00:48]} (6... O-O 7. Nbd2 Qc7 8. Bd3 Nbd7 9. e4 cxd4 10. cxd4 dxe4 11. Nxe4 Nxe4 12. Bxe4 Nf6 13. Bd3 Qa5+ 14. Ke2 Rd8 15. Bh4 Bd7 16. Bxf6 gxf6 {0-1 (38) So,W (2815)-Carlsen,M (2832) chess.com INT 2017}) 7. Bxd6 {[%emt 0:02:05]} Qxd6 {[%emt 0:00:38]} 8. Ne5 {[%emt 0:00:00]} Nbd7 {[%emt 0:11:29]} 9. f4 {[%emt 0:00:03]} Ne4 {[%emt 0:05:21]} 10. Nd2 {[%emt 0:00:26]} Nxd2 {[%emt 0:00:33]} 11. Qxd2 $146 {[%emt 0:00:10]} ({Predecessor:} 11. Kxd2 O-O 12. Nxd7 Bxd7 13. g3 {0-1 (33) Mira,H (2175)-Garcia Vicente,N (2230) Thessaloniki 1988}) 11... f6 {[%emt 0:02:19]} 12. Nxd7 {[%emt 0:02:01]} Bxd7 {[%emt 0:00:22]} 13. Be2 {[%emt 0:00:59]} O-O {[%emt 0:00:57]} 14. O-O {[%emt 0:00:42]} Rad8 {[%emt 0:25:06]} 15. Rad1 {[%emt 0:04:06]} b6 {[%emt 0:15:50]} 16. Bf3 {[%emt 0:02:14]} Be8 {[%emt 0:07:45]} 17. g3 {[%emt 0:05:22]} Bg6 {[%emt 0:01:21]} 18. Qe2 {[%emt 0:00:39]} Qe7 {[%emt 0:06:23]} 19. Rd2 {[%emt 0:00:43]} Rd6 {[%emt 0:00:56]} 20. Rfd1 {[%emt 0:00:27]} Rfd8 {[%emt 0:00:23]} 21. g4 {[%emt 0:04:16]} Be4 {[%emt 0:03:06]} 22. Bxe4 {[%emt 0:02:49]} dxe4 {[%emt 0:00:01]} 23. Qc4 {[%emt 0:00:08]} Rd5 {[%emt 0:02:40]} 24. Qe2 {[%emt 0:01:57]} cxd4 {[%emt 0:02:53]} 25. exd4 {[%emt 0:02:03]} f5 {[%emt 0:00:38]} 26. gxf5 {[%emt 0:03:16]} exf5 {[%emt 0:00:43]} 27. c4 {[%emt 0:00:47]} R5d6 {[%emt 0:00:01]} 28. Qe3 {[%emt 0:00:02]} Rg6+ {[%emt 0:00:50]} 29. Rg2 {[%emt 0:01:21]} Rxg2+ {[%emt 0:03:38]} 30. Kxg2 {[%emt 0:00:03]} h6 {[%emt 0:01:38]} 31. Rd2 {[%emt 0:02:36]} Kh7 {[%emt 0:00:13]} 32. d5 {[%emt 0:06:00]} Rd6 {[%emt 0:00:04]} 33. Kh1 {[%emt 0:00:18]} Rg6 {[%emt 0:00:21]} 34. a3 {[%emt 0:01:47]} a5 {[%emt 0:00:06]} 35. Rg2 {[%emt 0:02:20]} Rxg2 {[%emt 0:00:25]} 36. Kxg2 {[%emt 0:00:02] [#]} Qc7 $1 {[%emt 0:02:05]} 37. Qc1 {[%emt 0:05:29] [#]} a4 $1 {[%emt 0:00:00]} 38. Qd1 {[%emt 0:00:51]} Qxf4 {[%emt 0:01:22]} 39. d6 $19 {[%emt 0:00:00]} e3 {[%emt 0:00:00]} 40. d7 {[%emt 0:01:56]} Qf2+ {[%emt 0:00:00]} 41. Kh3 {[%emt 0:31:45]} e2 {[%emt 0:02:31]} 42. d8=Q {[%emt 0:02:38]} Qf3+ {[%emt 0:00:12]} 0-1

[Event "Orbis-2 IM 2018"]
[Site "Paracin"]
[Date "2018.12.06"]
[Round "5"]
[White "Konstantinov, Aleksandar"]
[Black "Karthik Kumar Pradeep"]
[Result "0-1"]
[ECO "E28"]
[WhiteElo "2080"]
[BlackElo "2230"]
[Annotator "NA"]
[PlyCount "56"]
[EventDate "2018.12.03"]
[EventType "tourn"]
[EventCountry "SRB"]
[SourceTitle "playchess.com"]
[Source "ChessBase"]
[SourceQuality "1"]
[TimeControl "40/5400+30:1800+30"]

1. d4 Nf6 2. c4 e6 3. Nc3 Bb4 4. e3 O-O 5. a3 Bxc3+ 6. bxc3 b6 7. Bd3 Bb7 8. f3 c5 9. Ne2 Nc6 10. O-O d6 11. e4 Ne8 12. Be3 {LiveBook: 7 Games} Qd7 {E28: Nimzo-Indian: Sämisch: 5...0-0 6 e3} (12... Rc8 13. Ng3 cxd4 14. cxd4 e5 15. d5 Na5 16. Rc1 Ba6 17. Qa4 f6 18. f4 Rf7 19. Be2 exf4 20. Rxf4 {1-0 (35) Shengelia,D (2529)-Bernasek,J (2506) Austria 2012}) 13. f4 (13. Nc1 $14) 13... f5 14. d5 $146 ({Predecessor:} 14. Ng3 $11 {keeps the balance.} g6 15. Qe2 Ng7 16. Rad1 Na5 17. d5 Rae8 18. Rfe1 fxe4 19. Nxe4 Nf5 20. Bf2 Kg7 21. g4 Ne7 22. Ng5 {1-0 (22) Epelman,E-Prokopp,H ICCF corr 1967}) 14... Ne7 15. Ng3 fxe4 16. Bxe4 exd5 17. Bxd5+ Nxd5 18. cxd5 b5 19. Qf3 Nf6 20. Rad1 Rae8 21. Bf2 Qf7 22. Nf5 $19 Ne4 23. g4 h5 24. h3 hxg4 25. hxg4 Qg6 26. Ng3 Ng5 27. Qd3 Nh3+ 28. Kh2 Qxg4 0-1

[Event "Orbis-2 IM 2018"]
[Site "Paracin"]
[Date "2018.12.07"]
[Round "6"]
[White "Besedes, Danilo"]
[Black "Sredojevic, Ivan"]
[Result "1-0"]
[ECO "A49"]
[WhiteElo "2300"]
[BlackElo "2271"]
[Annotator "NA"]
[PlyCount "81"]
[EventDate "2018.12.03"]
[EventType "tourn"]
[EventCountry "SRB"]
[SourceTitle "playchess.com"]
[Source "ChessBase"]
[SourceQuality "1"]
[TimeControl "40/5400+30:1800+30"]

1. d4 {[%emt 0:00:00]} Nf6 {[%emt 0:01:25]} 2. Nf3 {[%emt 0:00:00]} g6 {[%emt 0:00:29]} 3. g3 {[%emt 0:00:00]} Bg7 {[%emt 0:00:05]} 4. Bg2 {[%emt 0:00:00]} O-O {[%emt 0:00:05]} 5. O-O {[%emt 0:00:00]} d6 {[%emt 0:00:05]} 6. c4 {[%emt 0:00:00]} Nbd7 {[%emt 0:02:31]} 7. Nc3 {[%emt 0:00:12]} c6 {[%emt 0:00:07]} 8. e4 {[%emt 0:00:30]} e5 {[%emt 0:00:27]} 9. d5 {[%emt 0:00:39]} Nc5 {[%emt 0:00:36]} 10. Ne1 {[%emt 0:01:51] E68: King's Indian: Fianchetto: 6...Nbd7 7 0-0 e5 8 e4} (10. Qc2 a5 11. Rd1 Qe7 12. b3 cxd5 13. cxd5 Bd7 14. Qe2 b5 15. Bg5 b4 16. Bxf6 Qxf6 17. Nb1 Qe7 18. Nbd2 {0-1 (36) Wiewiora,E (2320)-Kovalev,V (2639) Katowice 2017}) 10... cxd5 {[%emt 0:00:28]} 11. cxd5 {[%emt 0:00:30] LiveBook: 12 Games} Bg4 {[%emt 0:03:33]} 12. Qc2 {[%emt 0:01:37]} (12. f3 $5 {[%cal Rf3g4]} Bd7 13. Be3 $14) 12... Rc8 {[%emt 0:00:18]} 13. f3 {[%emt 0:01:37]} Bd7 $1 {[%emt 0:01:23]} 14. Be3 $146 {[%emt 0:01:22]} ({Predecessor:} 14. Nd3 Na4 15. Be3 Qa5 16. Rfc1 Nxc3 17. bxc3 Rc7 {½-½ (30) Jaracz,P (2485)-Agopov,M (2410) Germany 2006}) 14... b5 {[%emt 0:02:33]} 15. Nd3 {[%emt 0:00:23]} Nxd3 {[%emt 0:03:25]} 16. Qxd3 {[%emt 0:00:19]} b4 {[%emt 0:00:01]} ({Black should try} 16... a6 $14) 17. Nb5 {[%emt 0:01:26]} Bxb5 {[%emt 0:12:11]} 18. Qxb5 {[%emt 0:00:55]} Nd7 {[%emt 0:04:37]} 19. Qxb4 {[%emt 0:01:24]} Nc5 {[%emt 0:00:50]} 20. Rfc1 {[%emt 0:01:13]} f5 {[%emt 0:00:08]} 21. Qd2 {[%emt 0:06:22]} a5 $18 {[%emt 0:02:14]} 22. Rc2 {[%emt 0:02:56]} f4 {[%emt 0:00:15]} 23. Bf2 {[%emt 0:00:09]} Bf6 {[%emt 0:00:07]} 24. Rd1 {[%emt 0:17:31]} Bg5 {[%emt 0:01:51]} 25. g4 {[%emt 0:00:31]} Bh4 {[%emt 0:00:08]} 26. Bxc5 {[%emt 0:03:32]} dxc5 {[%emt 0:03:07]} 27. d6 {[%emt 0:00:42]} Qb6 {[%emt 0:01:46]} 28. Bf1 {[%emt 0:01:40]} Kh8 {[%emt 0:00:45]} 29. Bc4 {[%emt 0:00:17]} Rcd8 {[%emt 0:13:10]} 30. Qd5 {[%emt 0:01:46]} Rf6 {[%emt 0:00:08]} 31. d7 {[%emt 0:09:01]} Qc7 {[%emt 0:00:20]} 32. Bb5 {[%emt 0:00:16]} c4 {[%emt 0:00:10]} 33. Rxc4 {[%emt 0:00:58]} Qb6+ {[%emt 0:00:25]} 34. Qc5 {[%emt 0:00:02]} Qb8 {[%emt 0:00:11]} 35. Kg2 {[%emt 0:01:10]} Re6 {[%emt 0:00:01]} 36. a4 {[%emt 0:02:17]} h5 {[%emt 0:00:08]} 37. gxh5 {[%emt 0:01:56]} gxh5 {[%emt 0:00:23]} 38. Kh3 {[%emt 0:00:08]} Be7 {[%emt 0:00:13]} 39. Qd5 {[%emt 0:01:29]} Rg6 {[%emt 0:00:04]} 40. Rc6 {[%emt 0:00:00]} Rg5 {[%emt 0:00:00]} 41. Qf7 {[%emt 0:01:10]} 1-0